[Event "10th LCC FIDE Open 2018"]
[Site "London"]
[Date "2018.12.15"]
[Round "7"]
[White "Fischer, Daniel"]
[Black "Head, Louise"]
[Result "1-0"]
[ECO "B17"]
[WhiteElo "2324"]
[BlackElo "2079"]
[Annotator "NA"]
[PlyCount "119"]
[EventDate "2018.12.09"]
[EventType "swiss"]
[EventCountry "ENG"]
[SourceTitle "playchess.com"]
[Source "ChessBase"]
[SourceQuality "1"]
[TimeControl "40/5400+30:1800+30"]

1. e4 {[%emt 0:00:00]} c6 {[%emt 0:00:44]} 2. d4 {[%emt 0:00:00]} d5 {[%emt 0:00:05]} 3. Nc3 {[%emt 0:00:00]} dxe4 {[%emt 0:00:09]} 4. Nxe4 {[%emt 0:00:00]} Nd7 {[%emt 0:00:19]} 5. Ng5 {[%emt 0:00:25] LiveBook: 2114 Games} Ngf6 {[%emt 0:00:31]} 6. Bd3 {[%emt 0:00:19]} g6 {[%emt 0:01:38]} 7. N1f3 {[%emt 0:01:29]} Bg7 {[%emt 0:01:34]} 8. O-O {[%emt 0:01:23] B17: Caro-Kann: Modern Line (4...Nd7)} (8. h3 O-O 9. O-O c5 10. c3 cxd4 11. Nxd4 e5 12. Nb5 a6 13. Nd6 Nb6 14. Ndxf7 Rxf7 15. Bc4 Nbd5 16. Nxf7 Kxf7 {1-0 (87) Leko,P (2730)-Wang,H (2735) Beijing 2013}) 8... O-O {[%emt 0:00:23]} 9. c3 {[%emt 0:00:31]} e6 {[%emt 0:06:50]} 10. Re1 {[%emt 0:06:35]} c5 $146 {[%emt 0:07:33]} ({Predecessor:} 10... Re8 11. Bf4 c5 12. Nxf7 Kxf7 13. Ng5+ Kg8 14. Nxe6 Rxe6 15. Rxe6 Kh8 {1-0 (39) Brito,L (2246)-Rodrigues da Silva,E (2179) Cabo Branco 2015}) 11. Qc2 {[%emt 0:10:32]} cxd4 {[%emt 0:06:08]} 12. Nxd4 {[%emt 0:00:30]} Nc5 {[%emt 0:04:16]} 13. Bc4 {[%emt 0:02:44]} Nd5 {[%emt 0:12:04]} 14. Ngf3 {[%emt 0:14:26]} Nb6 {[%emt 0:12:15]} 15. Bf1 {[%emt 0:04:04]} a6 {[%emt 0:00:59]} 16. a4 {[%emt 0:09:54]} Qc7 {[%emt 0:03:10]} 17. b4 {[%emt 0:09:17]} Ncd7 {[%emt 0:02:51]} 18. Bg5 {[%emt 0:05:34]} Nd5 {[%emt 0:03:55]} 19. Rac1 {[%emt 0:00:51]} Ne5 {[%emt 0:06:32]} 20. Qb3 {[%emt 0:03:10]} Nxf3+ {[%emt 0:03:10]} 21. Nxf3 {[%emt 0:00:06]} a5 {[%emt 0:03:33]} 22. b5 {[%emt 0:05:42]} b6 {[%emt 0:03:14]} 23. c4 {[%emt 0:00:46]} Nf6 {[%emt 0:01:56]} 24. c5 {[%emt 0:07:18]} bxc5 {[%emt 0:02:19]} 25. Qe3 {[%emt 0:01:14]} Nd5 {[%emt 0:02:54]} 26. Rxc5 {[%emt 0:05:43]} Qd6 {[%emt 0:02:13]} 27. Qc1 {[%emt 0:01:18]} Bb7 $11 {[%emt 0:00:42]} 28. Nd2 {[%emt 0:05:09]} Nb6 {[%emt 0:01:46]} 29. Qc2 {[%emt 0:04:34]} Nxa4 {[%emt 0:00:47]} 30. Rc7 {[%emt 0:00:08]} Bd5 {[%emt 0:00:16]} 31. Be7 {[%emt 0:00:13]} Qb6 {[%emt 0:01:02]} 32. Bxf8 {[%emt 0:00:16]} Bxf8 {[%emt 0:00:14]} 33. Rc8 {[%emt 0:00:50]} Rxc8 {[%emt 0:06:02]} 34. Qxc8 {[%emt 0:00:01]} Nc5 {[%emt 0:00:13]} 35. Rb1 {[%emt 0:01:03]} Bb7 {[%emt 0:01:34]} 36. Qb8 {[%emt 0:00:36]} Nd7 {[%emt 0:00:57]} 37. Qe8 {[%emt 0:00:45]} Qd6 {[%emt 0:01:52]} 38. Nc4 {[%emt 0:00:17]} Qd5 {[%emt 0:01:27]} 39. Ne3 {[%emt 0:00:30]} Qe4 {[%emt 0:00:28]} 40. Qxd7 {[%emt 0:00:29]} Qxb1 {[%emt 0:00:10]} 41. Qxb7 {[%emt 0:30:05]} a4 {[%emt 0:02:43]} 42. Qa6 {[%emt 0:00:00]} a3 {[%emt 0:00:57]} 43. b6 {[%emt 0:00:00]} a2 {[%emt 0:03:13]} 44. b7 {[%emt 0:00:00]} Bd6 {[%emt 0:04:20]} 45. Qxd6 {[%emt 0:00:00]} Qxb7 {[%emt 0:00:51]} 46. Qd8+ {[%emt 0:00:00]} Kg7 {[%emt 0:00:06]} 47. Qd4+ {[%emt 0:00:00]} e5 {[%emt 0:00:17]} 48. Qxe5+ {[%emt 0:00:00]} f6 {[%emt 0:00:05]} 49. Qc3 {[%emt 0:00:00]} Qb1 {[%emt 0:00:59]} 50. Nc2 {[%emt 0:00:00]} Qxc2 {[%emt 0:01:15]} 51. Qxc2 {[%emt 0:00:00]} a1=Q {[%emt 0:00:07]} 52. Qc6 {[%emt 0:00:00]} Qa7 {[%emt 0:00:32]} 53. g3 {[%emt 0:00:00]} Qe7 {[%emt 0:00:09]} 54. Bc4 {[%emt 0:00:00]} g5 {[%emt 0:01:10]} 55. Qe6 {[%emt 0:00:00]} Qf8 {[%emt 0:01:55]} 56. Qd7+ {[%emt 0:00:00]} Kh6 {[%emt 0:00:18]} 57. Bd3 {[%emt 0:00:00]} Qh8 {[%emt 0:02:11]} 58. Qf7 {[%emt 0:00:00]} g4 {[%emt 0:00:32]} 59. Be4 {[%emt 0:00:00]} Kg5 {[%emt 0:02:17]} 60. Bxh7 {[%emt 0:00:00]} 1-0

[Event "10th LCC FIDE Open 2018"]
[Site "London"]
[Date "2018.12.15"]
[Round "7"]
[White "Kueppers, Timo"]
[Black "Woong, Zhi Wei William"]
[Result "1/2-1/2"]
[ECO "D31"]
[WhiteElo "2320"]
[BlackElo "2146"]
[Annotator "NA"]
[PlyCount "91"]
[EventDate "2018.12.09"]
[EventType "swiss"]
[EventCountry "ENG"]
[SourceTitle "playchess.com"]
[Source "ChessBase"]
[SourceQuality "1"]
[TimeControl "40/5400+30:1800+30"]

1. d4 {[%emt 0:00:04]} d5 {[%emt 0:00:00]} 2. c4 {[%emt 0:00:22]} e6 {[%emt 0:00:00]} 3. Nc3 {[%emt 0:00:05]} Be7 {[%emt 0:00:00]} 4. cxd5 {[%emt 0:00:05]} exd5 {[%emt 0:00:00]} 5. Bf4 {[%emt 0:00:08]} c6 {[%emt 0:00:13] LiveBook: 1367 Games} 6. Qc2 {[%emt 0:00:06]} Bd6 {[%emt 0:00:21]} 7. Bxd6 {[%emt 0:05:16] D31: Queen's Gambit Declined: Semi-Slav without ...Nf6 (+ Marshall Gambit and Noteboom) and Exchange Variation lines without ...Nf6} Qxd6 {[%emt 0:00:05]} 8. e3 {[%emt 0:00:08]} Qg6 {[%emt 0:00:06]} (8... Ne7 9. Bd3 b6 10. Nf3 Ba6 11. O-O Bxd3 12. Qxd3 O-O 13. e4 Nd7 14. Rfe1 Rfe8 {0-1 (27) Nakamura,H (2780)-Topalov,V (2749) Saint Louis 2017}) 9. Qxg6 {[%emt 0:02:10]} hxg6 {[%emt 0:00:19]} 10. Bd3 {[%emt 0:00:31]} Bf5 {[%emt 0:12:06]} 11. Ke2 {[%emt 0:02:40]} Nf6 {[%emt 0:01:58]} 12. Nf3 {[%emt 0:00:30]} Nbd7 {[%emt 0:01:40]} 13. h3 {[%emt 0:01:37]} Ke7 $146 {[%emt 0:18:35]} ({Predecessor:} 13... Ne4 14. Rhc1 Nxc3+ 15. Rxc3 {½-½ (61) Muha,M (2257)-Woong,Z (2008) Poprad 2016}) 14. Rhc1 {[%emt 0:03:24]} Rhc8 {[%emt 0:11:08]} 15. Ne1 {[%emt 0:12:59]} Ne8 {[%emt 0:03:42]} 16. Na4 {[%emt 0:02:37]} Nd6 {[%emt 0:08:30]} 17. Rc3 {[%emt 0:02:40]} Be4 {[%emt 0:16:12]} 18. Rac1 {[%emt 0:02:25]} Re8 {[%emt 0:03:37]} 19. Nc5 {[%emt 0:08:20]} Bxd3+ {[%emt 0:05:32]} 20. Nexd3 {[%emt 0:01:56]} Ne4 {[%emt 0:00:53]} 21. Nxe4 {[%emt 0:09:04]} dxe4 {[%emt 0:00:05]} 22. Nc5 {[%emt 0:03:35]} Nxc5 {[%emt 0:01:37]} 23. Rxc5 {[%emt 0:00:06]} Rad8 {[%emt 0:03:44]} 24. b4 {[%emt 0:01:46]} a6 {[%emt 0:03:02]} 25. Kd2 {[%emt 0:02:52]} Rd6 {[%emt 0:00:54]} 26. Kc3 {[%emt 0:02:34]} Rd5 {[%emt 0:02:37]} 27. Rxd5 {[%emt 0:10:09]} cxd5 {[%emt 0:00:05]} 28. Kb3 {[%emt 0:00:03]} Rd8 {[%emt 0:03:47]} 29. Ka4 {[%emt 0:02:15]} b6 {[%emt 0:01:01]} 30. b5 {[%emt 0:01:39]} a5 {[%emt 0:00:14]} 31. Kb3 $11 {[%emt 0:01:01]} Rd6 {[%emt 0:00:36]} 32. Kc3 {[%emt 0:00:28]} Rf6 {[%emt 0:00:58]} 33. Rc2 {[%emt 0:00:04]} g5 {[%emt 0:00:28]} 34. Kb2 {[%emt 0:00:36]} Kd7 {[%emt 0:00:11]} 35. Kc1 {[%emt 0:00:26]} Rh6 {[%emt 0:00:52]} 36. Kb2 {[%emt 0:06:57]} Rh8 {[%emt 0:00:41]} 37. Rc6 {[%emt 0:00:00]} Rh6 {[%emt 0:00:05]} 38. Rc2 {[%emt 0:01:37]} Rh8 {[%emt 0:00:06]} 39. Kc1 {[%emt 0:00:06]} Rc8 {[%emt 0:00:58]} 40. Rxc8 {[%emt 0:00:06]} Kxc8 {[%emt 0:00:03]} 41. Kd2 {[%emt 0:35:56]} Kd7 {[%emt 0:31:10]} 42. Ke2 {[%emt 0:04:05]} Ke6 {[%emt 0:01:25]} 43. Kf1 {[%emt 0:00:33]} Kf5 {[%emt 0:00:00]} 44. Kg1 {[%emt 0:00:00]} g4 {[%emt 0:00:00]} 45. Kh2 {[%emt 0:00:00]} Kg5 {[%emt 0:00:00]} 46. Kg3 {[%emt 0:00:00]} 1/2-1/2

[Event "10th LCC FIDE Open 2018"]
[Site "London"]
[Date "2018.12.15"]
[Round "7"]
[White "Ronka, Erik"]
[Black "Tozer, Philip A A"]
[Result "1-0"]
[ECO "C11"]
[WhiteElo "2281"]
[BlackElo "2137"]
[Annotator "NA"]
[PlyCount "63"]
[EventDate "2018.12.09"]
[EventType "swiss"]
[EventCountry "ENG"]
[SourceTitle "playchess.com"]
[Source "ChessBase"]
[SourceQuality "1"]
[TimeControl "40/5400+30:1800+30"]

1. e4 {[%emt 0:00:00]} e6 {[%emt 0:00:00]} 2. d4 {[%emt 0:00:10]} d5 {[%emt 0:00:00]} 3. Nc3 {[%emt 0:01:48]} Nf6 {[%emt 0:00:00]} 4. e5 {[%emt 0:00:15]} Nfd7 {[%emt 0:00:00]} 5. f4 {[%emt 0:00:10]} c5 {[%emt 0:00:00]} 6. Nf3 {[%emt 0:00:06]} Nc6 {[%emt 0:00:01]} 7. Be3 {[%emt 0:00:11]} cxd4 {[%emt 0:00:12]} 8. Nxd4 {[%emt 0:00:05]} Bc5 {[%emt 0:00:07]} 9. Qd2 {[%emt 0:01:01]} O-O {[%emt 0:00:09]} 10. O-O-O {[%emt 0:00:47]} a6 {[%emt 0:00:12]} 11. Qf2 {[%emt 0:02:22]} Bxd4 {[%emt 0:00:05]} 12. Bxd4 {[%emt 0:00:05]} b5 {[%emt 0:00:09]} 13. Be3 {[%emt 0:00:20] C11: French: Classical System: 4 e5 and 4 Bg5 dxe4} b4 {[%emt 0:00:41]} (13... Qa5 14. Kb1 b4 15. Ne2 Qc7 16. Nd4 Nxd4 17. Bxd4 a5 18. Bb5 a4 19. b3 Ba6 20. Bxa4 Rfc8 {1-0 (74) So,W (2808)-Holt,C (2567) chess.com INT 2017}) 14. Na4 {[%emt 0:00:46]} a5 {[%emt 0:00:27]} 15. h4 {[%emt 0:00:27]} Ba6 {[%emt 0:02:04]} 16. h5 {[%emt 0:08:20]} Bxf1 {[%emt 0:05:55]} 17. Rhxf1 {[%emt 0:00:25] [#]} h6 $146 {[%emt 0:07:16]} ({Predecessor:} 17... f6 18. h6 g6 19. exf6 Nxf6 20. Qe2 Ne4 {1-0 (48) Cheparinov,I (2625)-Stellwagen,D (2573) Wijk aan Zee 2006}) 18. g4 {[%emt 0:00:17]} f5 {[%emt 0:10:15]} 19. exf6 {[%emt 0:10:21]} Qxf6 {[%emt 0:05:37]} 20. Qg2 {[%emt 0:04:08]} Kh8 {[%emt 0:01:39]} 21. Kb1 {[%emt 0:14:33]} Rac8 {[%emt 0:23:06]} 22. b3 {[%emt 0:06:44]} d4 {[%emt 0:04:25]} 23. Bc1 {[%emt 0:09:51]} Qe7 {[%emt 0:03:08]} 24. g5 {[%emt 0:11:00]} Rf5 {[%emt 0:03:12]} 25. gxh6 {[%emt 0:00:55]} Nf6 {[%emt 0:05:30]} 26. hxg7+ {[%emt 0:02:33]} Qxg7 {[%emt 0:00:09]} 27. Qe2 {[%emt 0:00:26]} e5 {[%emt 0:03:20]} 28. fxe5 {[%emt 0:02:23]} Rxe5 {[%emt 0:00:08]} 29. Qa6 {[%emt 0:03:54]} Ree8 {[%emt 0:02:35]} 30. Rde1 {[%emt 0:06:17]} Rc7 {[%emt 0:06:21]} 31. Rxe8+ $18 {[%emt 0:02:33]} Nxe8 {[%emt 0:00:15]} 32. Bf4 {[%emt 0:01:28]} 1-0

[Event "10th LCC FIDE Open 2018"]
[Site "London"]
[Date "2018.12.15"]
[Round "7"]
[White "Barrish, Daniel"]
[Black "Edwards, Simon R"]
[Result "1-0"]
[ECO "A57"]
[WhiteElo "2252"]
[BlackElo "1931"]
[Annotator "NA"]
[PlyCount "95"]
[EventDate "2018.12.09"]
[EventType "swiss"]
[EventCountry "ENG"]
[SourceTitle "playchess.com"]
[Source "ChessBase"]
[SourceQuality "1"]
[TimeControl "40/5400+30:1800+30"]

1. d4 {[%emt 0:04:34]} Nf6 {[%emt 0:02:15]} 2. c4 {[%emt 0:00:07]} c5 {[%emt 0:00:33]} 3. d5 {[%emt 0:00:06]} b5 {[%emt 0:00:15]} 4. cxb5 {[%emt 0:00:07]} a6 {[%emt 0:00:05]} 5. f3 {[%emt 0:00:05]} e6 {[%emt 0:01:53]} 6. e4 {[%emt 0:00:07]} exd5 {[%emt 0:02:09]} 7. e5 {[%emt 0:00:07]} Qe7 {[%emt 0:01:53]} 8. Qe2 {[%emt 0:00:40]} Ng8 {[%emt 0:00:08]} 9. Nc3 {[%emt 0:00:08]} Bb7 {[%emt 0:01:14]} 10. Nh3 {[%emt 0:00:09]} c4 {[%emt 0:04:38] A57: Benko/Volga Gambit} 11. Nf4 {[%emt 0:00:14]} Qc5 {[%emt 0:00:31]} 12. Nfxd5 {[%emt 0:00:10]} Bxd5 {[%emt 0:00:36]} 13. Be3 {[%emt 0:00:08]} Qb4 {[%emt 0:00:11]} 14. a3 {[%emt 0:00:13]} Qa5 {[%emt 0:00:23]} 15. Bd2 {[%emt 0:00:10]} Be6 {[%emt 0:02:44]} 16. Nd5 {[%emt 0:00:12]} Qd8 {[%emt 0:00:42]} 17. Qxc4 {[%emt 0:00:16]} Ra7 {[%emt 0:03:21]} 18. Rc1 {[%emt 0:00:42]} Bxd5 {[%emt 0:05:07]} (18... axb5) 19. Qxd5 {[%emt 0:00:09]} axb5 {[%emt 0:00:04]} 20. Bxb5 {[%emt 0:01:57]} Ne7 $146 {[%emt 0:00:44]} 21. Qd3 {[%emt 0:11:18]} Nbc6 {[%emt 0:01:33]} 22. O-O {[%emt 0:04:16]} Rb7 {[%emt 0:03:37]} 23. a4 {[%emt 0:02:23]} g6 $1 {[%emt 0:00:14]} ({Much weaker is} 23... Nxe5 $6 24. Qe4 $16) 24. Bg5 {[%emt 0:06:10]} Qb6+ {[%emt 0:06:35]} 25. Be3 {[%emt 0:03:31]} Qd8 {[%emt 0:00:59]} 26. Rfd1 {[%emt 0:03:09]} Nxe5 {[%emt 0:09:27]} 27. Qe4 {[%emt 0:01:53]} Qb8 {[%emt 0:00:05]} 28. f4 {[%emt 0:09:09]} Ng4 {[%emt 0:08:18]} 29. Bd4 {[%emt 0:12:35]} f5 {[%emt 0:09:22]} 30. Qf3 {[%emt 0:02:46]} (30. Qe2 $18 {is the precise move to win.} Rg8 31. h3) 30... Bh6 {[%emt 0:03:12]} 31. Bxh8 {[%emt 0:06:17]} Bxf4 {[%emt 0:03:09]} 32. g3 $16 {[%emt 0:01:52]} (32. Rc3 $142 Bxh2+ 33. Kh1) 32... Bxc1 {[%emt 0:03:23]} 33. Rxc1 {[%emt 0:00:14]} Rc7 {[%emt 0:02:06]} 34. Rd1 {[%emt 0:06:19]} Qb6+ {[%emt 0:02:59]} 35. Bd4 {[%emt 0:00:13]} Qe6 {[%emt 0:00:15]} 36. h3 {[%emt 0:01:30]} Nf6 {[%emt 0:00:14]} 37. Bxf6 {[%emt 0:02:59]} Qxf6 {[%emt 0:00:17]} 38. Bxd7+ {[%emt 0:01:09]} Kf7 {[%emt 0:01:29]} 39. Qb3+ {[%emt 0:01:13]} Kg7 {[%emt 0:01:49]} 40. Qe6 {[%emt 0:00:44]} Qg5 {[%emt 0:02:49]} 41. Qe5+ {[%emt 0:32:29]} Kh6 {[%emt 0:30:10]} 42. h4 {[%emt 0:06:59]} Qg4 {[%emt 0:00:07]} 43. Qe3+ {[%emt 0:01:23]} Kh5 {[%emt 0:01:12]} 44. Rd4 {[%emt 0:02:33]} Rc1+ {[%emt 0:00:17]} 45. Kf2 {[%emt 0:00:28]} Rc2+ {[%emt 0:00:13]} 46. Ke1 {[%emt 0:00:25]} Rc1+ {[%emt 0:00:48]} 47. Qxc1 {[%emt 0:00:25]} Qxd4 {[%emt 0:00:14]} 48. Qg5# {[%emt 0:01:36]} 1-0

[Event "10th LCC FIDE Open 2018"]
[Site "London"]
[Date "2018.12.15"]
[Round "7"]
[White "Richardson, John R"]
[Black "Gant, Chris J"]
[Result "1-0"]
[ECO "B07"]
[WhiteElo "2242"]
[BlackElo "2135"]
[Annotator "NA"]
[PlyCount "59"]
[EventDate "2018.12.09"]
[EventType "swiss"]
[EventCountry "ENG"]
[SourceTitle "playchess.com"]
[Source "ChessBase"]
[SourceQuality "1"]
[TimeControl "40/5400+30:1800+30"]

1. d4 {[%emt 0:00:00]} g6 {[%emt 0:01:40]} 2. e4 {[%emt 0:00:00]} d6 {[%emt 0:00:24]} 3. Nc3 {[%emt 0:00:00]} Nf6 {[%emt 0:00:26]} 4. Be3 {[%emt 0:01:29]} c6 {[%emt 0:02:57]} 5. Qd2 {[%emt 0:03:06]} Bg7 {[%emt 0:02:58]} 6. Bh6 {[%emt 0:02:16]} O-O {[%emt 0:00:19]} 7. h4 {[%emt 0:03:13]} e5 {[%emt 0:23:06]} 8. Bxg7 {[%emt 0:12:14]} Kxg7 {[%emt 0:00:10]} 9. O-O-O {[%emt 0:00:03]} Qe7 {[%emt 0:07:34]} 10. f3 {[%emt 0:01:24]} h5 {[%emt 0:03:35]} 11. Nh3 {[%emt 0:03:25]} Na6 {[%emt 0:03:32]} 12. Be2 {[%emt 0:01:55]} (12. dxe5 $16 dxe5 13. Bxa6 Bxh3 14. Rxh3 (14. gxh3 bxa6 15. Qd6 Qxd6 $14) 14... bxa6 15. Qd6 Qxd6 16. Rxd6) 12... Nc7 {[%emt 0:01:01]} 13. Nf2 {[%emt 0:13:52]} Ne6 {[%emt 0:04:59]} 14. d5 {[%emt 0:07:18]} Nd4 {[%emt 0:03:33]} 15. g4 {[%emt 0:01:51]} Rh8 {[%emt 0:03:51]} 16. Rdg1 {[%emt 0:08:39]} Bd7 {[%emt 0:02:39]} 17. g5 {[%emt 0:05:01]} Nh7 $14 {[%emt 0:03:06]} 18. Bd1 {[%emt 0:03:22]} c5 {[%emt 0:09:18]} 19. f4 {[%emt 0:05:24]} exf4 {[%emt 0:04:26]} 20. Qxf4 {[%emt 0:00:52]} b5 {[%emt 0:03:13]} 21. Re1 {[%emt 0:01:58]} Rhe8 {[%emt 0:01:02]} 22. Rhf1 {[%emt 0:02:54]} Qe5 {[%emt 0:01:55]} 23. Nd3 {[%emt 0:00:56]} Qxf4+ {[%emt 0:00:32]} 24. Rxf4 {[%emt 0:00:13]} Re7 {[%emt 0:07:16]} 25. e5 {[%emt 0:08:28]} b4 {[%emt 0:01:11]} 26. Ne4 {[%emt 0:03:14]} dxe5 27. Nexc5 {[%emt 0:00:30]} Rae8 28. Rxe5 {[%emt 0:00:30]} Rxe5 29. Rxd4 {[%emt 0:00:30]} Bf5 30. Nxe5 {[%emt 0:00:30]} 1-0

[Event "10th LCC FIDE Open 2018"]
[Site "London"]
[Date "2018.12.15"]
[Round "7"]
[White "Knudsen, Simon"]
[Black "Lopez Gomez, Jose Pablo"]
[Result "1-0"]
[ECO "C06"]
[WhiteElo "2206"]
[BlackElo "2094"]
[Annotator "NA"]
[PlyCount "67"]
[EventDate "2018.12.09"]
[EventType "swiss"]
[EventCountry "ENG"]
[SourceTitle "playchess.com"]
[Source "ChessBase"]
[SourceQuality "1"]
[TimeControl "40/5400+30:1800+30"]

1. e4 {[%emt 0:00:00]} e6 {[%emt 0:07:56]} 2. d4 {[%emt 0:00:00]} d5 {[%emt 0:00:23]} 3. Nd2 {[%emt 0:00:00]} Nf6 {[%emt 0:00:15]} 4. e5 {[%emt 0:00:00]} Nfd7 {[%emt 0:00:02]} 5. Bd3 {[%emt 0:00:07]} c5 {[%emt 0:00:04]} 6. c3 {[%emt 0:00:06]} Nc6 {[%emt 0:00:07]} 7. Ne2 {[%emt 0:00:05]} cxd4 {[%emt 0:00:48]} 8. cxd4 {[%emt 0:00:07]} f6 {[%emt 0:00:12]} 9. exf6 {[%emt 0:00:05]} Nxf6 {[%emt 0:00:03]} 10. Nf3 {[%emt 0:00:10]} Bd6 {[%emt 0:01:44]} 11. O-O {[%emt 0:00:11]} Qc7 {[%emt 0:01:47]} 12. Nc3 {[%emt 0:00:15]} a6 {[%emt 0:00:09]} 13. Bd2 {[%emt 0:00:06]} O-O {[%emt 0:01:07]} 14. Rc1 {[%emt 0:00:05]} Bd7 {[%emt 0:03:52]} 15. Re1 {[%emt 0:00:11]} Rae8 {[%emt 0:05:54]} 16. Na4 {[%emt 0:14:31]} Qb8 {[%emt 0:12:43]} 17. Nc5 {[%emt 0:47:40]} e5 {[%emt 0:15:09]} 18. Nxd7 {[%emt 0:17:52]} Nxd7 {[%emt 0:00:13]} 19. Qb3 {[%emt 0:00:08]} Nf6 {[%emt 0:25:56]} 20. Bg5 {[%emt 0:09:40]} Na5 {[%emt 0:03:16]} 21. Qa4 {[%emt 0:00:10]} e4 {[%emt 0:11:57]} 22. Bxf6 {[%emt 0:06:39]} b5 {[%emt 0:01:46]} 23. Qxa5 {[%emt 0:01:05]} Rxf6 {[%emt 0:00:08]} 24. Ne5 {[%emt 0:01:43]} exd3 {[%emt 0:02:53]} 25. Nd7 {[%emt 0:00:51]} Rxe1+ {[%emt 0:02:26]} 26. Qxe1 {[%emt 0:00:06]} Bxh2+ {[%emt 0:01:13]} 27. Kh1 {[%emt 0:00:08]} d2 {[%emt 0:00:27]} 28. Nxf6+ {[%emt 0:00:39]} gxf6 {[%emt 0:00:19]} 29. Qe6+ {[%emt 0:00:06]} Kg7 {[%emt 0:00:25]} 30. Qg4+ {[%emt 0:00:49]} Kf7 {[%emt 0:00:22]} 31. Rd1 {[%emt 0:00:41]} Bf4 {[%emt 0:00:29]} 32. g3 {[%emt 0:00:08]} Bh6 {[%emt 0:01:03]} 33. f4 {[%emt 0:00:17]} Qe8 {[%emt 0:00:25]} 34. Qh5+ {[%emt 0:00:35]} 1-0

[Event "10th LCC FIDE Open 2018"]
[Site "London"]
[Date "2018.12.15"]
[Round "7"]
[White "Villiers, Thomas"]
[Black "Bhawoodien, Mohamed Ozayr"]
[Result "1-0"]
[ECO "A35"]
[WhiteElo "2205"]
[BlackElo "2123"]
[Annotator "NA"]
[PlyCount "87"]
[EventDate "2018.12.09"]
[EventType "swiss"]
[EventCountry "ENG"]
[SourceTitle "playchess.com"]
[Source "ChessBase"]
[SourceQuality "1"]
[TimeControl "40/5400+30:1800+30"]

1. c4 {[%emt 0:02:47]} c5 {[%emt 0:12:55]} 2. Nc3 {[%emt 0:00:13]} Nc6 {[%emt 0:00:07]} 3. Nf3 {[%emt 0:00:26]} g6 {[%emt 0:01:19]} 4. e3 {[%emt 0:01:30]} Bg7 {[%emt 0:03:15]} 5. d4 {[%emt 0:00:06]} cxd4 {[%emt 0:00:53]} 6. exd4 {[%emt 0:00:06]} d6 {[%emt 0:00:30]} 7. Be2 {[%emt 0:00:38]} Bg4 {[%emt 0:06:59]} 8. Be3 {[%emt 0:00:40]} Nh6 {[%emt 0:02:31] A35: Symmetrical English: 2 Nc3 Nc6 3 Nf3} 9. d5 {[%emt 0:33:44]} Bxf3 {[%emt 0:02:16]} 10. Bxf3 {[%emt 0:00:04]} Ne5 {[%emt 0:00:33] LiveBook: 18 Games} 11. Be4 {[%emt 0:01:37]} (11. Be2 Nf5 12. Bd2 h5 13. O-O Qb6 14. b3 a6 15. Rc1 Qd4 16. Qc2 {0-1 (63) Sumets,A (2577)-Onischuk,V (2614) Lvov 2016}) 11... O-O $146 {[%emt 0:06:11]} ({Predecessor:} 11... Rc8 12. Qa4+ Qd7 13. Qxd7+ Kxd7 14. Bxh6 Bxh6 15. b3 Nxc4 16. bxc4 Rxc4 {0-1 (37) Ramesa,D (2136)-Lenic,L (2159) Balatonlelle 2002}) 12. Bd4 {[%emt 0:00:15]} Qc8 {[%emt 0:12:57]} 13. b3 {[%emt 0:00:44]} Nf5 {[%emt 0:00:25]} 14. Bxf5 {[%emt 0:00:25]} Qxf5 {[%emt 0:00:07]} 15. O-O {[%emt 0:00:17]} Qf4 {[%emt 0:04:07]} 16. Ne2 {[%emt 0:00:48]} Qh4 {[%emt 0:05:48]} 17. f4 {[%emt 0:02:35]} Ng4 {[%emt 0:00:44]} 18. h3 {[%emt 0:00:01]} Bxd4+ {[%emt 0:01:24]} 19. Nxd4 {[%emt 0:00:28]} Nh6 {[%emt 0:07:23]} (19... Nf6 $16) 20. Qd3 {[%emt 0:00:43]} a6 {[%emt 0:04:19]} 21. Rf2 {[%emt 0:02:22]} Kh8 {[%emt 0:01:41]} 22. Re1 $18 {[%emt 0:03:26]} Qf6 {[%emt 0:06:55]} 23. g4 {[%emt 0:03:54]} Ng8 {[%emt 0:00:48]} 24. g5 {[%emt 0:00:26]} Qg7 {[%emt 0:00:07]} 25. Kh2 {[%emt 0:00:41]} b5 {[%emt 0:07:32]} 26. cxb5 {[%emt 0:04:06]} axb5 {[%emt 0:00:07]} 27. Nxb5 {[%emt 0:00:05]} Rfc8 {[%emt 0:00:35]} 28. a4 {[%emt 0:00:55]} f5 {[%emt 0:02:06]} 29. Rc2 {[%emt 0:00:25]} h6 {[%emt 0:00:56]} 30. h4 {[%emt 0:00:19]} Kh7 {[%emt 0:03:01]} 31. Rec1 {[%emt 0:00:29]} Rxc2+ {[%emt 0:00:42]} 32. Qxc2 {[%emt 0:02:00]} e5 {[%emt 0:01:38]} 33. dxe6 {[%emt 0:00:55]} Ne7 {[%emt 0:00:22]} 34. Qc3 {[%emt 0:00:45]} Nd5 {[%emt 0:00:21]} 35. Qxg7+ {[%emt 0:00:22]} Kxg7 {[%emt 0:00:06]} 36. Rc7+ {[%emt 0:00:55]} Kf8 {[%emt 0:02:17]} 37. gxh6 {[%emt 0:00:36]} Nxc7 {[%emt 0:00:18]} 38. Nxc7 {[%emt 0:00:09]} Rc8 {[%emt 0:02:19]} 39. h7 {[%emt 0:00:05]} Ke7 {[%emt 0:00:27]} 40. a5 {[%emt 0:00:58]} Rh8 {[%emt 0:01:04]} 41. a6 {[%emt 0:30:44]} Rxh7 {[%emt 0:05:19]} 42. a7 {[%emt 0:00:00]} Rxh4+ {[%emt 0:00:13]} 43. Kg3 {[%emt 0:00:00]} Rh8 {[%emt 0:00:08]} 44. a8=Q {[%emt 0:03:00]} 1-0